[Event "FIDE Womens World Cup 2021"]
[Site "Sochi"]
[Date "2021.07.16"]
[Round "2.2"]
[White "Badelka, Olga"]
[Black "Matnadze, Ana"]
[Result "1/2-1/2"]
[ECO "D35"]
[WhiteElo "2418"]
[BlackElo "2421"]
[Annotator "NA"]
[PlyCount "115"]
[EventDate "2021.07.12"]
[EventType "k.o."]
[EventCountry "RUS"]
[SourceTitle "playchess.com"]
[Source "ChessBase"]
[SourceQuality "1"]
[TimeControl "40/5400+30:1800+30"]

1. d4 {[%emt 0:00:05]} Nf6 {[%emt 0:00:22]} 2. c4 {[%emt 0:00:08]} e6 {[%emt 0:00:35]} 3. Nc3 {[%emt 0:00:07]} d5 {[%emt 0:00:39]} 4. cxd5 {[%emt 0:00:13]} exd5 {[%emt 0:00:06]} 5. Bg5 {[%emt 0:00:11]} c6 {[%emt 0:00:23]} 6. e3 {[%emt 0:00:23]} Nbd7 {[%emt 0:01:05]} 7. Bd3 {[%emt 0:00:34]} Be7 {[%emt 0:00:37]} 8. Qc2 {[%emt 0:00:17]} Nf8 {[%emt 0:01:21]} 9. Nge2 {[%emt 0:00:27]} Ne6 {[%emt 0:00:23]} 10. Bh4 {[%emt 0:00:17]} g6 {[%emt 0:00:55]} 11. f3 {[%emt 0:01:43]} O-O {[%emt 0:04:04]} 12. O-O {[%emt 0:01:18]} Re8 {[%emt 0:05:36]} 13. Rad1 {[%emt 0:02:16]} Nh5 {[%emt 0:08:41]} 14. Bxe7 {[%emt 0:12:48]} Qxe7 {[%emt 0:01:11]} 15. e4 {[%emt 0:03:40]} Nhf4 {[%emt 0:14:47]} 16. Nxf4 {[%emt 0:00:50]} Nxf4 {[%emt 0:00:07]} 17. Qc1 {[%emt 0:02:31]} Nxd3 {[%emt 0:04:46]} 18. Rxd3 {[%emt 0:00:11]} Be6 {[%emt 0:02:13]} 19. Rf2 {[%emt 0:10:00]} Rad8 {[%emt 0:02:31]} 20. Qe3 {[%emt 0:03:16]} dxe4 {[%emt 0:10:20]} 21. fxe4 {[%emt 0:00:16]} f5 {[%emt 0:00:18]} 22. e5 {[%emt 0:13:48]} Bc4 {[%emt 0:02:07]} 23. Rdd2 {[%emt 0:02:13]} b5 {[%emt 0:11:36]} 24. b3 {[%emt 0:04:35]} Be6 {[%emt 0:01:08]} 25. h3 {[%emt 0:01:49]} Rf8 {[%emt 0:02:28]} 26. Rc2 {[%emt 0:06:17]} a5 {[%emt 0:04:18]} 27. Ne2 {[%emt 0:03:09]} Bd5 {[%emt 0:00:23]} 28. Rc5 {[%emt 0:00:32]} Rd7 {[%emt 0:08:54]} 29. Nc3 {[%emt 0:02:37]} Rfd8 {[%emt 0:00:35]} 30. Rd2 {[%emt 0:04:32]} Qh4 {[%emt 0:06:47]} 31. e6 {[%emt 0:08:08]} Re7 {[%emt 0:02:54]} 32. Nxd5 {[%emt 0:00:18]} cxd5 {[%emt 0:01:39]} 33. Qe5 {[%emt 0:01:31]} Rde8 {[%emt 0:01:24]} 34. Re2 {[%emt 0:02:07]} f4 {[%emt 0:01:17]} 35. Rc3 {[%emt 0:06:57]} Rf8 {[%emt 0:00:42]} 36. Rf3 {[%emt 0:02:01]} Rf5 {[%emt 0:00:31]} 37. Qb8+ {[%emt 0:00:43]} Kg7 {[%emt 0:00:02]} 38. Qxb5 {[%emt 0:01:47]} Qf6 {[%emt 0:00:06]} 39. Qxa5 {[%emt 0:03:44]} Qxd4+ {[%emt 0:00:19]} 40. Kh2 {[%emt 0:00:12]} Qf6 {[%emt 0:01:08]} 41. Qd8 {[%emt 0:10:41]} g5 {[%emt 0:04:02]} 42. Rc3 {[%emt 0:02:39]} Kh6 {[%emt 0:10:27]} 43. Rf3 {[%emt 0:05:59]} Kg7 {[%emt 0:05:18]} 44. Rc2 {[%emt 0:01:23]} Qxe6 {[%emt 0:01:30]} 45. Rc8 {[%emt 0:03:26]} Rf6 {[%emt 0:05:10]} 46. b4 {[%emt 0:01:31]} Rd7 {[%emt 0:02:46]} 47. Qh8+ {[%emt 0:00:57]} Kh6 {[%emt 0:00:41]} 48. b5 {[%emt 0:00:35]} d4 {[%emt 0:01:29]} 49. Rc6 {[%emt 0:02:03]} Rd6 {[%emt 0:00:02]} 50. Rc7 {[%emt 0:00:28]} Rf7 {[%emt 0:00:42]} 51. Rxf7 {[%emt 0:01:30]} Qxf7 {[%emt 0:00:02]} 52. Qb8 {[%emt 0:02:07]} Qf6 {[%emt 0:01:14]} 53. Rd3 {[%emt 0:01:19]} Qe5 {[%emt 0:01:22]} 54. Qf8+ {[%emt 0:00:54]} Kg6 {[%emt 0:00:10]} 55. Qg8+ {[%emt 0:00:23]} Kh6 {[%emt 0:00:08]} 56. Qf8+ {[%emt 0:00:39]} Kg6 {[%emt 0:00:06]} 57. Qg8+ {[%emt 0:00:04]} Kh6 {[%emt 0:00:49]} 58. Qf8+ {[%emt 0:00:04]} 1/2-1/2

[Event "FIDE Womens World Cup 2021"]
[Site "Sochi"]
[Date "2021.07.16"]
[Round "2.2"]
[White "Cyfka, Karina"]
[Black "Ushenina, Anna"]
[Result "1/2-1/2"]
[ECO "D41"]
[WhiteElo "2417"]
[BlackElo "2429"]
[Annotator "NA"]
[PlyCount "83"]
[EventDate "2021.07.12"]
[EventType "k.o."]
[EventCountry "RUS"]
[SourceTitle "playchess.com"]
[Source "ChessBase"]
[SourceQuality "1"]
[TimeControl "40/5400+30:1800+30"]

1. d4 {[%emt 0:00:04]} Nf6 {[%emt 0:00:11]} 2. c4 {[%emt 0:01:03]} e6 {[%emt 0:00:07]} 3. Nf3 {[%emt 0:00:05]} d5 {[%emt 0:00:20]} 4. Nc3 {[%emt 0:00:41]} c5 {[%emt 0:00:21]} 5. cxd5 {[%emt 0:00:25]} Nxd5 {[%emt 0:00:05]} 6. e4 {[%emt 0:01:04]} Nxc3 {[%emt 0:00:05]} 7. bxc3 {[%emt 0:00:03]} cxd4 {[%emt 0:00:05]} 8. cxd4 {[%emt 0:00:05]} Bb4+ {[%emt 0:00:03]} 9. Bd2 {[%emt 0:00:08]} Bxd2+ {[%emt 0:00:05]} 10. Qxd2 {[%emt 0:00:03]} O-O {[%emt 0:00:18]} 11. Bc4 {[%emt 0:00:08]} b6 {[%emt 0:00:04]} 12. O-O {[%emt 0:01:29]} Bb7 {[%emt 0:00:06]} 13. Rfe1 {[%emt 0:01:33]} Qd6 {[%emt 0:00:25]} 14. Rad1 {[%emt 0:05:06]} Nd7 {[%emt 0:02:54]} 15. Bb3 {[%emt 0:07:46]} Rac8 {[%emt 0:03:56]} 16. h3 {[%emt 0:02:54]} Rfd8 {[%emt 0:02:36]} 17. Qg5 {[%emt 0:06:50]} h6 {[%emt 0:04:12]} 18. Qh4 {[%emt 0:01:34]} b5 {[%emt 0:26:11]} 19. Bc2 {[%emt 0:11:20]} Re8 {[%emt 0:07:16]} 20. Bb1 {[%emt 0:00:54]} Rc3 {[%emt 0:04:33]} 21. Nh2 {[%emt 0:04:42]} Qe7 {[%emt 0:06:34]} 22. Qh5 {[%emt 0:03:56]} Qg5 {[%emt 0:01:58]} 23. Qe2 {[%emt 0:02:22]} a6 {[%emt 0:00:38]} 24. Bd3 {[%emt 0:06:20]} Nf6 {[%emt 0:02:50]} 25. Nf3 {[%emt 0:03:53]} Qf4 {[%emt 0:06:54]} 26. Ne5 {[%emt 0:01:44]} Rd8 {[%emt 0:00:55]} 27. g3 {[%emt 0:02:52]} Qg5 {[%emt 0:00:09]} 28. h4 {[%emt 0:00:35]} Qh5 {[%emt 0:00:02]} 29. Qd2 {[%emt 0:02:33]} Rxd3 {[%emt 0:01:21]} 30. Qxd3 {[%emt 0:02:56]} Nxe4 {[%emt 0:00:10]} 31. Qa3 {[%emt 0:07:29]} Qf5 {[%emt 0:02:28]} 32. Qe3 {[%emt 0:02:22]} Bd5 {[%emt 0:11:26]} 33. Qf4 {[%emt 0:06:33]} Qxf4 {[%emt 0:01:12]} 34. gxf4 {[%emt 0:00:02]} Nc3 {[%emt 0:02:19]} 35. Rc1 {[%emt 0:00:25]} b4 {[%emt 0:00:32]} 36. a3 {[%emt 0:01:23]} a5 {[%emt 0:00:09]} 37. axb4 {[%emt 0:00:25]} axb4 {[%emt 0:00:02]} 38. Nd3 {[%emt 0:00:06]} Bc4 {[%emt 0:00:42]} 39. Nxb4 {[%emt 0:00:55]} Ne2+ {[%emt 0:01:33]} 40. Rxe2 {[%emt 0:00:08]} Bxe2 {[%emt 0:00:03]} 41. Nc6 {[%emt 0:30:16]} Rd6 {[%emt 0:15:37]} 42. Rc5 {[%emt 0:00:00]} 1/2-1/2

[Event "FIDE Womens World Cup 2021"]
[Site "Sochi"]
[Date "2021.07.16"]
[Round "2.2"]
[White "Buksa, Nataliya"]
[Black "Yip, Carissa"]
[Result "1-0"]
[ECO "B56"]
[WhiteElo "2413"]
[BlackElo "2430"]
[Annotator "NA"]
[PlyCount "48"]
[EventDate "2021.07.12"]
[EventType "k.o."]
[EventCountry "RUS"]
[SourceTitle "playchess.com"]
[Source "ChessBase"]
[SourceQuality "1"]
[TimeControl "40/5400+30:1800+30"]

1. e4 {[%emt 0:00:02]} c5 {[%emt 0:00:26]} 2. Nf3 {[%emt 0:00:06]} d6 {[%emt 0:00:03]} 3. d4 {[%emt 0:00:04]} cxd4 {[%emt 0:00:03]} 4. Nxd4 {[%emt 0:00:03]} Nf6 {[%emt 0:00:04]} 5. Nc3 {[%emt 0:00:03]} Nc6 {[%emt 0:00:21]} 6. f3 {[%emt 0:01:14]} e5 {[%emt 0:00:18]} 7. Nb3 {[%emt 0:00:03]} Be7 {[%emt 0:00:42]} 8. Be3 {[%emt 0:02:27]} Be6 {[%emt 0:00:04]} 9. Nd5 {[%emt 0:00:45]} Rc8 {[%emt 0:05:48]} 10. c4 {[%emt 0:11:18]} Bxd5 {[%emt 0:05:55]} 11. cxd5 {[%emt 0:10:46]} Na5 {[%emt 0:25:22]} 12. Nd2 {[%emt 0:07:07]} Qc7 {[%emt 0:08:38]} 13. Kf2 {[%emt 0:06:17]} b6 {[%emt 0:22:07]} 14. Qa4+ {[%emt 0:00:37]} Kf8 {[%emt 0:00:53]} 15. b4 {[%emt 0:05:51]} Nb7 {[%emt 0:06:43]} 16. Qxa7 {[%emt 0:02:05]} Nxd5 {[%emt 0:07:43]} 17. exd5 {[%emt 0:02:45]} f5 {[%emt 0:00:01]} 18. Ba6 {[%emt 0:11:19]} f4 {[%emt 0:00:30]} 19. Bxb6 {[%emt 0:01:51]} Qc3 {[%emt 0:03:35]} 20. Ke2 {[%emt 0:03:23]} e4 {[%emt 0:01:48]} 21. fxe4 {[%emt 0:01:31]} Bg5 {[%emt 0:01:34]} 22. Rhd1 {[%emt 0:03:26]} f3+ {[%emt 0:05:46]} 23. Nxf3 {[%emt 0:00:41]} Qb2+ {[%emt 0:02:36]} 24. Kf1 {[%emt 0:00:05]} Qb1 1-0

[Event "FIDE Womens World Cup 2021"]
[Site "Sochi"]
[Date "2021.07.16"]
[Round "2.2"]
[White "Bulmaga, Irina"]
[Black "Danielian, Elina"]
[Result "0-1"]
[ECO "C18"]
[WhiteElo "2413"]
[BlackElo "2407"]
[Annotator "NA"]
[PlyCount "112"]
[EventDate "2021.07.12"]
[EventType "k.o."]
[EventCountry "RUS"]
[SourceTitle "playchess.com"]
[Source "ChessBase"]
[SourceQuality "1"]
[TimeControl "40/5400+30:1800+30"]

1. e4 {[%emt 0:00:04]} e6 {[%emt 0:00:06]} 2. d4 {[%emt 0:00:06]} d5 {[%emt 0:00:04]} 3. Nc3 {[%emt 0:00:05]} Bb4 {[%emt 0:00:28]} 4. e5 {[%emt 0:00:17]} c5 {[%emt 0:00:06]} 5. a3 {[%emt 0:00:13]} Bxc3+ {[%emt 0:00:44]} 6. bxc3 {[%emt 0:00:08]} Qa5 {[%emt 0:00:40]} 7. Bd2 {[%emt 0:00:34]} Qa4 {[%emt 0:00:07]} 8. Qg4 {[%emt 0:00:30]} Kf8 {[%emt 0:00:37]} 9. Qd1 {[%emt 0:00:42]} b6 {[%emt 0:00:40]} 10. dxc5 {[%emt 0:01:34]} bxc5 {[%emt 0:00:24]} 11. c4 {[%emt 0:00:33]} Ne7 {[%emt 0:22:20]} 12. Nf3 {[%emt 0:05:28]} Nbc6 {[%emt 0:03:25]} 13. c3 {[%emt 0:19:23]} Qxd1+ {[%emt 0:00:08]} 14. Rxd1 {[%emt 0:00:02]} Ba6 {[%emt 0:08:59]} 15. cxd5 {[%emt 0:09:55]} Bxf1 {[%emt 0:00:05]} 16. Rxf1 {[%emt 0:00:57]} Nxd5 {[%emt 0:04:29]} 17. Rb1 {[%emt 0:02:17]} c4 {[%emt 0:07:29]} 18. Ke2 {[%emt 0:07:03]} h6 {[%emt 0:00:50]} 19. Rb5 {[%emt 0:02:30]} Rc8 {[%emt 0:17:19]} 20. Rc5 {[%emt 0:01:30]} Nb6 {[%emt 0:01:31]} 21. Rb1 {[%emt 0:03:04]} g5 {[%emt 0:05:51]} 22. h4 {[%emt 0:05:39]} g4 {[%emt 0:02:43]} 23. Nh2 {[%emt 0:02:40]} Nd7 {[%emt 0:03:22]} 24. Rxc4 {[%emt 0:00:32]} Ndxe5 {[%emt 0:00:02]} 25. Ra4 {[%emt 0:02:59]} h5 {[%emt 0:00:41]} 26. Rb7 {[%emt 0:08:21]} Kg7 {[%emt 0:00:52]} 27. Bg5 {[%emt 0:02:26]} Rb8 {[%emt 0:01:29]} 28. Rxb8 {[%emt 0:08:34]} Rxb8 {[%emt 0:00:03]} 29. Nf1 {[%emt 0:09:15]} Rb2+ {[%emt 0:06:17]} 30. Bd2 {[%emt 0:00:47]} f5 {[%emt 0:04:04]} 31. Ne3 {[%emt 0:00:37]} Kf6 {[%emt 0:00:46]} 32. Kd1 {[%emt 0:03:37]} Nd3 {[%emt 0:06:48]} 33. Nc4 {[%emt 0:00:13]} Ra2 {[%emt 0:02:38]} 34. Ra6 {[%emt 0:00:07]} Nce5 {[%emt 0:00:47]} 35. Bg5+ {[%emt 0:00:28]} Kf7 {[%emt 0:00:09]} 36. Rxa7+ {[%emt 0:00:39]} Kg6 {[%emt 0:00:47]} 37. Nxe5+ {[%emt 0:00:59]} Nxe5 {[%emt 0:00:01]} 38. Re7 {[%emt 0:02:03]} Nd3 {[%emt 0:00:09]} 39. Rxe6+ {[%emt 0:00:26]} Kg7 {[%emt 0:00:05]} 40. Be3 {[%emt 0:02:34]} Nxf2+ {[%emt 0:00:57]} 41. Bxf2 {[%emt 0:04:13]} Rxf2 {[%emt 0:00:05]} 42. Re2 {[%emt 0:01:58]} Rf1+ {[%emt 0:00:05]} 43. Kc2 {[%emt 0:02:23]} f4 {[%emt 0:00:16]} 44. Kd3 {[%emt 0:03:20]} f3 {[%emt 0:12:48]} 45. gxf3 {[%emt 0:03:43]} Rxf3+ {[%emt 0:00:47]} 46. Kd4 {[%emt 0:04:31]} Rh3 {[%emt 0:10:18]} 47. c4 {[%emt 0:08:32]} Rxh4 {[%emt 0:01:23]} 48. c5 {[%emt 0:03:58]} g3+ {[%emt 0:00:07]} 49. Kd5 {[%emt 0:00:10]} Rg4 {[%emt 0:00:39]} 50. Rg2 {[%emt 0:00:58]} h4 {[%emt 0:01:34]} 51. c6 {[%emt 0:00:22]} Rg5+ {[%emt 0:07:45]} 52. Kd6 {[%emt 0:01:22]} h3 {[%emt 0:00:25]} 53. Rc2 {[%emt 0:00:23]} h2 {[%emt 0:00:34]} 54. c7 {[%emt 0:00:25]} h1=Q {[%emt 0:00:12]} 55. c8=Q {[%emt 0:00:09]} Qd1+ {[%emt 0:00:50]} 56. Ke6 {[%emt 0:00:13]} Qd5+ {[%emt 0:00:30]} 0-1

[Event "FIDE Womens World Cup 2021"]
[Site "Sochi"]
[Date "2021.07.16"]
[Round "2.2"]
[White "Hoang, Thanh Trang"]
[Black "Galliamova, Alisa"]
[Result "1/2-1/2"]
[ECO "D04"]
[WhiteElo "2404"]
[BlackElo "2442"]
[Annotator "NA"]
[PlyCount "96"]
[EventDate "2021.07.12"]
[EventType "k.o."]
[EventCountry "RUS"]
[SourceTitle "playchess.com"]
[Source "ChessBase"]
[SourceQuality "1"]
[TimeControl "40/5400+30:1800+30"]

1. d4 {[%emt 0:00:09]} d5 {[%emt 0:00:05]} 2. Nf3 {[%emt 0:00:18]} Nf6 {[%emt 0:00:13]} 3. e3 {[%emt 0:00:22]} Bf5 {[%emt 0:07:27]} 4. Bd3 {[%emt 0:01:29]} Bxd3 {[%emt 0:09:18]} 5. Qxd3 {[%emt 0:00:24]} Nbd7 {[%emt 0:02:24]} 6. O-O {[%emt 0:01:54]} e6 {[%emt 0:00:45]} 7. Nbd2 {[%emt 0:00:50]} Be7 {[%emt 0:08:55]} 8. e4 {[%emt 0:03:14]} dxe4 {[%emt 0:04:48]} 9. Nxe4 {[%emt 0:00:10]} c5 {[%emt 0:01:25]} 10. Rd1 {[%emt 0:09:24]} O-O {[%emt 0:02:48]} 11. Nxf6+ {[%emt 0:05:55]} Nxf6 {[%emt 0:10:05]} 12. Be3 {[%emt 0:02:27]} Qc7 {[%emt 0:01:03]} 13. dxc5 {[%emt 0:02:46]} Bxc5 {[%emt 0:00:32]} 14. Bxc5 {[%emt 0:00:21]} Qxc5 {[%emt 0:00:05]} 15. Rd2 {[%emt 0:02:58]} Qb6 {[%emt 0:01:55]} 16. Qd4 {[%emt 0:02:53]} Qxd4 {[%emt 0:06:18]} 17. Rxd4 {[%emt 0:00:33]} Rfd8 {[%emt 0:00:58]} 18. Rad1 {[%emt 0:00:25]} Rxd4 {[%emt 0:00:31]} 19. Rxd4 {[%emt 0:00:09]} Rc8 {[%emt 0:01:15]} 20. Kf1 {[%emt 0:02:17]} Kf8 {[%emt 0:01:41]} 21. c4 {[%emt 0:00:50]} Ke7 {[%emt 0:00:52]} 22. Ne5 {[%emt 0:04:35]} Rc5 {[%emt 0:12:33]} 23. f4 {[%emt 0:02:25]} Ra5 {[%emt 0:08:15]} 24. a3 {[%emt 0:02:12]} Ke8 {[%emt 0:04:09]} 25. Ke2 {[%emt 0:08:15]} Ng8 {[%emt 0:03:53]} 26. Rd3 {[%emt 0:04:38]} Rc5 {[%emt 0:05:05]} 27. b4 {[%emt 0:04:01]} Rc7 {[%emt 0:00:07]} 28. c5 {[%emt 0:01:05]} Ne7 {[%emt 0:01:13]} 29. Nc4 {[%emt 0:02:03]} Nd5 {[%emt 0:00:55]} 30. g3 {[%emt 0:01:26]} Ke7 {[%emt 0:01:15]} 31. Nd6 {[%emt 0:02:10]} a6 {[%emt 0:00:45]} 32. Nc4 {[%emt 0:01:04]} Rc6 {[%emt 0:01:36]} 33. f5 {[%emt 0:09:57]} b6 {[%emt 0:01:17]} 34. fxe6 {[%emt 0:00:59]} Kxe6 {[%emt 0:00:39]} 35. cxb6 {[%emt 0:02:38]} Nxb6 {[%emt 0:00:21]} 36. Nxb6 {[%emt 0:05:36]} Rxb6 {[%emt 0:00:04]} 37. Kd2 {[%emt 0:01:24]} f5 {[%emt 0:01:01]} 38. Re3+ {[%emt 0:00:35]} Kf6 {[%emt 0:00:32]} 39. Rc3 {[%emt 0:01:20]} g5 {[%emt 0:00:44]} 40. Rc5 {[%emt 0:00:21]} Rd6+ {[%emt 0:00:42]} 41. Ke3 {[%emt 0:31:10]} Re6+ {[%emt 0:31:42]} 42. Kf3 {[%emt 0:02:56]} g4+ {[%emt 0:00:00]} 43. Kf2 {[%emt 0:00:00]} Kg5 {[%emt 0:00:00]} 44. Rc7 {[%emt 0:00:00]} h5 {[%emt 0:00:00]} 45. Rg7+ {[%emt 0:00:00]} Kf6 {[%emt 0:00:00]} 46. Rh7 {[%emt 0:00:00]} Kg5 {[%emt 0:00:00]} 47. Rg7+ {[%emt 0:00:00]} Kf6 {[%emt 0:00:00]} 48. Rh7 {[%emt 0:00:00]} Ke5 1/2-1/2

[Event "FIDE Womens World Cup 2021"]
[Site "Sochi"]
[Date "2021.07.16"]
[Round "2.2"]
[White "Zawadzka, Jolanta"]
[Black "Bodnaruk, Anastasia"]
[Result "1-0"]
[ECO "B06"]
[WhiteElo "2403"]
[BlackElo "2446"]
[Annotator "NA"]
[PlyCount "95"]
[EventDate "2021.07.12"]
[EventType "k.o."]
[EventCountry "RUS"]
[SourceTitle "playchess.com"]
[Source "ChessBase"]
[SourceQuality "1"]
[TimeControl "40/5400+30:1800+30"]

1. e4 {[%emt 0:00:04]} d6 {[%emt 0:00:07]} 2. d4 {[%emt 0:00:05]} g6 {[%emt 0:00:06]} 3. Nc3 {[%emt 0:00:06]} Bg7 {[%emt 0:00:08]} 4. f4 {[%emt 0:00:19]} a6 {[%emt 0:01:03]} 5. Nf3 {[%emt 0:01:23]} b5 {[%emt 0:01:02]} 6. Bd3 {[%emt 0:01:51]} c5 {[%emt 0:10:38]} 7. dxc5 {[%emt 0:12:16]} dxc5 {[%emt 0:00:52]} 8. e5 {[%emt 0:00:10]} f5 {[%emt 0:07:21]} 9. a4 {[%emt 0:06:19]} b4 {[%emt 0:07:00]} 10. Nb1 {[%emt 0:00:29]} Nh6 {[%emt 0:09:10]} 11. O-O {[%emt 0:04:51]} Be6 {[%emt 0:03:38]} 12. Qe2 {[%emt 0:03:24]} Nc6 {[%emt 0:08:17]} 13. Nbd2 {[%emt 0:06:14]} Ng4 {[%emt 0:09:12]} 14. c3 {[%emt 0:13:14]} Na5 {[%emt 0:10:43]} 15. h3 {[%emt 0:02:21]} Nh6 {[%emt 0:03:06]} 16. Bxa6 {[%emt 0:04:36]} O-O {[%emt 0:02:58]} 17. Ng5 {[%emt 0:05:46]} Bd5 {[%emt 0:01:38]} 18. Bb5 {[%emt 0:01:04]} Kh8 {[%emt 0:11:12]} 19. Rd1 {[%emt 0:03:42]} Nf7 {[%emt 0:02:12]} 20. Ndf3 {[%emt 0:02:32]} Nxg5 {[%emt 0:03:40]} 21. Nxg5 {[%emt 0:01:32]} h6 {[%emt 0:02:58]} 22. Ne6 {[%emt 0:02:02]} Bxe6 {[%emt 0:00:08]} 23. Rxd8 {[%emt 0:00:04]} Rfxd8 {[%emt 0:00:02]} 24. Be3 {[%emt 0:00:40]} Rd5 {[%emt 0:03:36]} 25. Rd1 {[%emt 0:01:20]} Rc8 {[%emt 0:01:14]} 26. Rxd5 {[%emt 0:01:55]} Bxd5 {[%emt 0:00:01]} 27. Qd2 {[%emt 0:02:10]} e6 {[%emt 0:00:17]} 28. cxb4 {[%emt 0:00:32]} cxb4 {[%emt 0:00:59]} 29. Qxb4 {[%emt 0:00:31]} Nb3 {[%emt 0:00:26]} 30. Qe7 {[%emt 0:02:32]} Rc2 {[%emt 0:00:49]} 31. Bf1 {[%emt 0:01:24]} Rxb2 {[%emt 0:00:46]} 32. a5 {[%emt 0:00:19]} Rb1 {[%emt 0:00:31]} 33. a6 {[%emt 0:00:41]} Ra1 {[%emt 0:00:37]} 34. a7 {[%emt 0:00:24]} Kh7 {[%emt 0:00:23]} 35. Qc7 {[%emt 0:04:11]} Na5 {[%emt 0:00:34]} 36. Bc5 {[%emt 0:01:04]} Nc6 {[%emt 0:00:28]} 37. Kf2 {[%emt 0:02:18]} Ra2+ {[%emt 0:00:24]} 38. Ke3 {[%emt 0:00:23]} g5 {[%emt 0:00:39]} 39. g3 {[%emt 0:00:39]} Ra5 {[%emt 0:00:25]} 40. Bb5 {[%emt 0:03:29]} gxf4+ {[%emt 0:00:22]} 41. gxf4 {[%emt 0:30:09]} Rxb5 {[%emt 0:05:47]} 42. a8=Q {[%emt 0:00:00]} Rxc5 {[%emt 0:00:49]} 43. Qf8 {[%emt 0:00:00]} Rc3+ {[%emt 0:00:14]} 44. Kd2 {[%emt 0:00:00]} Rg3 {[%emt 0:00:19]} 45. Qcf7 {[%emt 0:00:00]} Rg2+ {[%emt 0:01:52]} 46. Ke1 {[%emt 0:00:00]} Rg1+ {[%emt 0:01:13]} 47. Kf2 {[%emt 0:00:00]} Rg2+ {[%emt 0:00:04]} 48. Kf1 {[%emt 0:00:00]} 1-0

[Event "FIDE Womens World Cup 2021"]
[Site "Sochi"]
[Date "2021.07.16"]
[Round "2.2"]
[White "Salimova, Nurgyul"]
[Black "Paehtz, Elisabeth"]
[Result "1/2-1/2"]
[ECO "A13"]
[WhiteElo "2395"]
[BlackElo "2466"]
[Annotator "ChessBase"]
[PlyCount "82"]
[EventDate "2021.07.12"]
[EventType "k.o."]
[EventCountry "RUS"]
[SourceTitle "playchess.com"]
[Source "ChessBase"]
[SourceQuality "1"]
[TimeControl "40/5400+30:1800+30"]

1. Nf3 {[%emt 0:00:03]} Nf6 {[%emt 0:00:05]} 2. c4 {[%emt 0:00:13]} e6 {[%emt 0:00:17]} 3. g3 {[%emt 0:00:26]} d5 {[%emt 0:00:05]} 4. Bg2 {[%emt 0:00:36]} dxc4 {[%emt 0:00:07]} 5. Qa4+ {[%emt 0:00:37]} Nbd7 {[%emt 0:00:07]} 6. Qxc4 {[%emt 0:00:57]} c5 {[%emt 0:00:11]} 7. Qc2 {[%emt 0:03:34]} b6 {[%emt 0:07:03]} 8. O-O {[%emt 0:07:32]} Bb7 {[%emt 0:00:05]} 9. d3 {[%emt 0:01:09]} Be7 {[%emt 0:01:35]} 10. Nc3 {[%emt 0:00:27]} O-O {[%emt 0:03:56]} 11. Rd1 {[%emt 0:06:08]} Rc8 {[%emt 0:02:14]} 12. e4 {[%emt 0:01:32]} Qc7 {[%emt 0:10:42]} 13. Bf4 {[%emt 0:08:46]} e5 {[%emt 0:00:03]} 14. Bg5 {[%emt 0:00:25]} h6 {[%emt 0:05:18]} 15. Bc1 {[%emt 0:01:14]} Rfe8 {[%emt 0:08:42]} 16. Bh3 {[%emt 0:03:09]} Rcd8 {[%emt 0:02:23]} 17. b3 {[%emt 0:17:20]} a6 {[%emt 0:03:53]} 18. Bb2 {[%emt 0:02:56]} Nb8 {[%emt 0:05:47]} 19. Ne2 {[%emt 0:01:54]} Nc6 {[%emt 0:01:44]} 20. a3 {[%emt 0:01:11]} Bf8 {[%emt 0:04:09]} 21. Rac1 {[%emt 0:04:09]} a5 {[%emt 0:06:38]} 22. Qc4 {[%emt 0:08:36]} Qb8 {[%emt 0:10:33]} 23. Bf5 {[%emt 0:07:20]} Re7 {[%emt 0:04:03]} 24. Qb5 {[%emt 0:05:04]} Ba8 {[%emt 0:04:26]} 25. Nc3 {[%emt 0:06:04]} Na7 {[%emt 0:07:50]} 26. Qa6 {[%emt 0:02:29]} Nc8 {[%emt 0:02:11]} 27. Bxc8 {[%emt 0:01:03]} Rxc8 {[%emt 0:00:09]} 28. Qc4 {[%emt 0:04:50]} Rd8 {[%emt 0:01:04]} 29. Nb5 {[%emt 0:01:13]} Re6 {[%emt 0:02:23]} 30. a4 {[%emt 0:00:27]} Ne8 {[%emt 0:02:25]} 31. Qc2 {[%emt 0:00:47]} Nd6 {[%emt 0:02:32]} 32. Na3 {[%emt 0:01:01]} f6 {[%emt 0:01:39]} 33. Nd2 {[%emt 0:00:57]} Qb7 {[%emt 0:00:35]} 34. Nf1 {[%emt 0:00:25]} Nf5 {[%emt 0:01:33]} 35. f3 {[%emt 0:00:51]} Nd4 {[%emt 0:00:39]} 36. Bxd4 {[%emt 0:00:15]} cxd4 {[%emt 0:00:10]} 37. Nb5 {[%emt 0:00:48]} Rc6 {[%emt 0:01:01]} 38. Qxc6 {[%emt 0:01:35]} Qxc6 {[%emt 0:00:04]} 39. Rxc6 {[%emt 0:00:05]} Bxc6 {[%emt 0:00:03]} 40. Rc1 {[%emt 0:00:36]} Bc5 {[%emt 0:01:11]} 41. g4 {[%emt 0:07:18]} Bd7 {[%emt 0:01:52]} 1/2-1/2